[Event "32nd NATO Championship 2022"]
[Site "Tartu"]
[Date "2022.06.28"]
[Round "3.5"]
[White "Sauer, Marko"]
[Black "Papasimakopoulos, Alexandros"]
[Result "0-1"]
[ECO "C15"]
[WhiteElo "2065"]
[BlackElo "2259"]
[Annotator "TA"]
[PlyCount "102"]
[EventDate "2022.06.27"]
[EventType "swiss"]
[EventCountry "EST"]
[SourceTitle "playchess.com"]
[Source "ChessBase"]
[SourceQuality "1"]
[TimeControl "5400+30"]

{[%evp 11,102,-32,-29,-35,-28,-16,-29,-49,0,0,0,-116,-101,-139,-70,-81,-31,-57,-84,-80,-77,-149,-84,-157,-79,-145,-108,-246,-203,-273,-58,-60,-60,-68,-17,-56,-48,-52,-26,-18,-31,-30,-35,-30,-28,-33,-44,-200,-206,-192,-190,-171,-179,-286,-270,-283,-248,-479,-465,-500,-481,-486,-471,-546,-520,-619,-614,-562,-533,-567,-537,-500,-479,-1377,-1345,-5093,-5093,-4247,-3308,-12845,-12845,-12842,-12841,-12825,-5505,-29978,-5122,-29980,-29979,-29985,-29986,-29986,-29987]} 1. e4 {[%emt 1:31:00]} e6 {[%emt 1:31:00]} 2. d4 {[%emt 0:00:30]} d5 {[%emt 0:00:30]} 3. Nc3 {[%emt 0:00:30]} Bb4 {[%emt 0:00:30]} 4. Bd2 {[%emt 0:00:30]} dxe4 {[%emt 0:00:30]} 5. Qg4 {[%emt 0:00:30]} Qxd4 {[%emt 0:00:30]} 6. O-O-O {[%emt 0:00:30]} f5 {[%emt 0:00:30]} (6... Qxf2 $2 7. Nh3 Qd4 8. Bg5 Bxc3 9. bxc3 (9. Rxd4 Bxd4 10. Qxe4 Bf6 $16) 9... Qxd1+ 10. Kxd1 $18) 7. Qh4 {[%emt 0:00:30] And now Nb5 would win. C15: French: 3 Nc3 Bb4: Unusual White 4th moves.} Be7 {[%emt 0:00:30]} 8. Qg3 {[%emt 0:00:30] Black must now prevent Nb5.} Bd6 $1 {[%emt 0:00:30]} 9. Qh4 {[%emt 0:00:30] [#] Black has an edge.} Bd7 $146 {[%emt 0:00:30]} (9... Nf6 $2 10. Bh6 $1 Qxd1+ 11. Nxd1 $18) (9... Nc6 $15) ({Predecessor:} 9... Qe5 10. Nb5 Nf6 11. Nh3 Qc5 12. Be3 Qc6 13. Nxd6+ cxd6 14. Qg3 e5 15. Qxg7 Rf8 16. Bh6 Nbd7 {1-0 (34) Wittke,V (2035)-Spielberger,H (1895) Bayern 2000}) 10. Nb5 $11 {[%emt 0:00:30]} Qf6 {[%emt 0:00:30]} 11. Nxd6+ {[%emt 0:00:30]} (11. Bg5 $11 {keeps the balance.} Qe5 12. Rxd6 cxd6 13. Bf4 (13. Nc7+ Kf7 $17)) 11... cxd6 $17 {[%emt 0:00:30]} 12. Qg3 {[%emt 0:00:30]} Nc6 {[%emt 0:00:30]} (12... d5 $1 $17 13. Bc3 Qh6+ 14. Kb1 Nf6) 13. Qxd6 $15 {[%emt 0:00:30]} O-O-O {[%emt 0:00:30]} (13... Qe7 $17 14. Be3 Nf6) 14. Nh3 {[%emt 0:00:30]} (14. Bf4 e5 15. Qxf6 (15. Be3 $2 f4 $19) 15... Nxf6 $17) 14... h6 {[%emt 0:00:30] Prevents Bg5.} 15. Bc3 {[%emt 0:00:30]} ({Wrong is} 15. Bf4 $2 e5 16. Qxf6 Nxf6 $19) 15... e5 {[%emt 0:00:30]} 16. Qa3 {[%emt 0:00:30] [#]} (16. Qc5 $142 b6 17. Qa3) 16... Qe7 {[%emt 0:00:30]} (16... Nge7 $142 $1 {Strongly threatening ...f4.} 17. Bb5 (17. Ba5 $2 Nxa5 18. Qxa5 Kb8 $19) 17... Be6) 17. Qa4 {[%emt 0:00:30]} (17. Rd6 $142) 17... Qc5 {[%emt 0:00:30]} ({Better is} 17... Nf6 18. Bb5 a6 19. Bxc6 Bxc6) 18. Bb5 {[%emt 0:00:30]} ({White should try} 18. Qb5 Qe7 19. f4 exf3 20. gxf3) 18... Nge7 {[%emt 0:00:30]} 19. Rd2 {[%emt 0:00:30]} (19. Qc4 $17 Qxc4 20. Bxc4) 19... Nd5 {[%emt 0:00:30]} 20. Qb3 {[%emt 0:00:30]} Nd4 $2 {[%emt 0:00:30]} (20... Nxc3 $19 21. bxc3 a6 22. Bxc6 Qxc6) 21. Bxd4 {[%emt 0:00:30]} exd4 {[%emt 0:00:30]} 22. Qc4 {[%emt 0:00:30]} b6 {[%emt 0:00:30] Black is more active.} (22... Qxc4 $15 23. Bxc4 Nf6) 23. Bxd7+ {[%emt 0:00:30]} (23. Ba6+ {is more complex.} Kc7 24. Rxd4 Qxc4 25. Rxc4+ Bc6 26. Rd1) 23... Rxd7 {[%emt 0:00:30]} 24. Rxd4 {[%emt 0:00:30]} Qxc4 {[%emt 0:00:30]} 25. Rxc4+ {[%emt 0:00:30]} Kb7 {[%emt 0:00:30]} 26. Rd1 {[%emt 0:00:30]} g5 $36 {[%emt 0:00:30][%mdl 2048] Prevents Nf4. Black has good play.} 27. Rcd4 {[%emt 0:00:30]} Kc6 {[%emt 0:00:30]} 28. Ng1 {[%emt 0:00:30]} Rhd8 {[%emt 0:00:30]} 29. c4 $2 {[%emt 0:00:30] Black continues to play with concentration.} (29. g3 $15) 29... Nb4 {[%emt 0:00:30]} 30. Rxd7 {[%emt 0:00:30]} Rxd7 {[%emt 0:00:30]} 31. Rxd7 {[%emt 0:00:30]} Kxd7 $19 {[%emt 0:00:30][%mdl 4096] Endgame KN-KN} 32. Ne2 {[%emt 0:00:30]} (32. f3 {was called for.}) 32... Nd3+ {[%emt 0:00:30]} ({Inferior is} 32... Nxa2+ 33. Kd2 $17) 33. Kc2 {[%emt 0:00:30]} Nxf2 {[%emt 0:00:30]} 34. b4 $2 {[%emt 0:00:30]} (34. Kd2) 34... Ng4 {[%emt 0:00:30]} 35. Kc3 {[%emt 0:00:30]} Nxh2 {[%emt 0:00:30]} 36. Kd4 {[%emt 0:00:30]} Ng4 {[%emt 0:00:30]} 37. a4 {[%emt 0:00:30]} Kc6 {[%emt 0:00:30]} 38. Nc3 {[%emt 0:00:30]} e3 {[%emt 0:00:30]} 39. Ne2 {[%emt 0:00:30]} h5 {[%emt 0:00:30][%cal Bh6h5,Bh5h4,Bh4h3][%mdl 32]} 40. Kd3 {[%emt 0:00:30]} f4 {[%emt 0:00:30]} 41. Ke4 {[%emt 0:00:30]} Nh6 {[%emt 0:00:30] Threatens to win with ...a5.} 42. g3 {[%emt 0:00:30]} (42. Nd4+ $142 Kd6 43. a5) 42... fxg3 {[%emt 0:00:30]} 43. Nxg3 {[%emt 0:00:30]} h4 {[%emt 0:00:30]} 44. Ne2 {[%emt 0:00:30]} h3 {[%emt 0:00:30]} 45. Nd4+ {[%emt 0:00:30]} Kd7 {[%emt 0:00:30] ( -> ...h2)} 46. Kf3 {[%emt 0:00:30]} g4+ {[%emt 0:00:30]} 47. Kg3 {[%emt 0:00:30] [#]} Kd6 {[%emt 0:00:30]} (47... Nf5+ $142 $1 {[%mdl 512]} 48. Nxf5 h2 49. Nxe3 h1=Q 50. Nxg4 Qe1+ 51. Kf4 Qxb4 52. Nf6+ Ke6) 48. Ne2 {[%emt 0:00:30]} Nf5+ {[%emt 0:00:30]} (48... Ke5 $142 49. Ng1 Kd4 50. Ne2+ Kxc4 51. Kh2 Nf5 52. Kg1 Kd3 53. Nf4+ Ke4 54. Ne6 Nd4 55. Nxd4 Kxd4 56. Kh2 e2 57. Kg3 e1=Q+ 58. Kf4 h2 59. Kg5 h1=Q 60. Kg6 Qe6+ 61. Kg7 Qhh6#) 49. Kh2 {[%emt 0:00:30]} Ke5 {[%emt 0:00:30] Black mates.} 50. c5 {[%emt 0:00:30]} bxc5 {[%emt 0:00:30]} 51. bxc5 {[%emt 0:00:30]} Kd5 {[%emt 0:00:30] Weighted Error Value: White=0.68/Black=0.25 (precise)} 0-1

[Event "32nd NATO Championship 2022"]
[Site "Tartu"]
[Date "2022.06.28"]
[Round "3.11"]
[White "Wagenaar, Harm Theo"]
[Black "Nikomanis, Andreas"]
[Result "0-1"]
[ECO "A48"]
[WhiteElo "1893"]
[BlackElo "2068"]
[Annotator "NA RC"]
[PlyCount "92"]
[EventDate "2022.06.27"]
[EventType "swiss"]
[EventCountry "EST"]
[SourceTitle "playchess.com"]
[Source "ChessBase"]
[SourceQuality "1"]
[TimeControl "5400+30"]

1. d4 {[%emt 0:00:06]} Nf6 {[%emt 0:00:05]} 2. Nf3 {[%emt 0:00:11]} g6 {[%emt 0:00:05]} 3. Bg5 {[%emt 0:00:31]} Bg7 {[%emt 0:00:06]} 4. Nbd2 {[%emt 0:00:10]} O-O {[%emt 0:01:00]} 5. c3 {[%emt 0:00:31]} d6 {[%emt 0:00:10]} 6. e4 {[%emt 0:00:08]} c5 {[%emt 0:00:03]} 7. dxc5 {[%emt 0:02:01]} dxc5 {[%emt 0:00:35]} 8. Bc4 {[%emt 0:00:29]} Nc6 {[%emt 0:05:29]} 9. Qe2 {[%emt 0:01:57]} Na5 {[%emt 0:02:24]} 10. Bd3 {[%emt 0:02:30]} Be6 {[%emt 0:06:19]} 11. Nc4 {[%emt 0:12:13]} Nc6 {[%emt 0:06:38]} 12. O-O {[%emt 0:01:28]} Qc7 {[%emt 0:00:37]} 13. a4 {[%emt 0:13:44]} h6 {[%emt 0:03:55]} 14. Bxf6 {[%emt 0:05:45]} exf6 {[%emt 0:03:45]} 15. Rfd1 {[%emt 0:05:54]} Rfe8 {[%emt 0:00:37]} 16. Ne3 {[%emt 0:02:05]} Na5 {[%emt 0:08:34]} 17. c4 {[%emt 0:06:26]} Nb3 {[%emt 0:07:37]} 18. Ra3 {[%emt 0:01:27]} Nd4 {[%emt 0:00:15]} 19. Nxd4 {[%emt 0:09:02]} cxd4 {[%emt 0:00:15]} 20. Nd5 {[%emt 0:01:15]} Bxd5 {[%emt 0:00:55]} 21. cxd5 {[%emt 0:00:19]} f5 {[%emt 0:01:53]} 22. Qf3 $11 {[%emt 0:03:51]} fxe4 {[%emt 0:07:11]} 23. Bxe4 {[%emt 0:00:10]} Qe7 {[%emt 0:00:34]} 24. Bd3 {[%emt 0:00:48]} Qb4 {[%emt 0:00:19]} 25. Raa1 {[%emt 0:07:12]} Re7 {[%emt 0:00:52]} 26. g3 {[%emt 0:07:18]} Rd8 {[%emt 0:02:53]} 27. Rac1 {[%emt 0:03:33]} Qxa4 {[%emt 0:05:54]} 28. Ra1 {[%emt 0:01:56]} Qd7 {[%emt 0:03:04]} 29. Rxa7 {[%emt 0:04:07]} Qxd5 {[%emt 0:00:23]} 30. Qf4 {[%emt 0:00:50]} Qb3 {[%emt 0:04:11]} 31. Qd2 {[%emt 0:00:27]} Rde8 {[%emt 0:01:13]} 32. Kg2 {[%emt 0:00:21]} Qd5+ {[%emt 0:02:21]} 33. Kg1 {[%emt 0:00:19]} h5 {[%emt 0:01:18]} 34. Ra5 {[%emt 0:02:09]} Qf3 {[%emt 0:01:34]} 35. Raa1 {[%emt 0:01:28]} h4 {[%emt 0:00:54]} 36. Bf1 {[%emt 0:00:46]} Qh5 {[%emt 0:06:42]} 37. Ra5 {[%emt 0:00:49]} Qg4 {[%emt 0:01:59]} 38. h3 {[%emt 0:01:59]} Qe6 {[%emt 0:03:11]} 39. g4 {[%emt 0:00:40]} Qb6 {[%emt 0:04:43]} 40. Ra3 {[%emt 0:01:06]} Be5 {[%emt 0:00:42]} 41. Rd3 {[%emt 0:00:49]} Bb8 {[%emt 0:00:56]} 42. Rxd4 {[%emt 0:00:47]} Qc7 {[%emt 0:00:07]} 43. Bg2 {[%emt 0:00:27]} Re2 {[%emt 0:00:48]} 44. Qb4 {[%emt 0:01:36]} Ba7 {[%emt 0:05:23]} 45. Rf4 {[%emt 0:00:09]} Bc5 {[%emt 0:01:49]} 46. Qa4 {[%emt 0:01:08]} b5 {[%emt 0:00:10]} 0-1

[Event "32nd NATO Championship 2022"]
[Site "Tartu"]
[Date "2022.06.28"]
[Round "3.13"]
[White "Duren, Andrew"]
[Black "Pazeriene, Diana"]
[Result "1/2-1/2"]
[ECO "A48"]
[WhiteElo "1997"]
[BlackElo "1930"]
[Annotator "NA RC"]
[PlyCount "80"]
[EventDate "2022.06.27"]
[EventType "swiss"]
[EventCountry "EST"]
[SourceTitle "playchess.com"]
[Source "ChessBase"]
[SourceQuality "1"]
[TimeControl "5400+30"]

1. d4 {[%emt 0:00:03]} Nf6 {[%emt 0:00:12]} 2. Bf4 {[%emt 0:00:09]} g6 {[%emt 0:01:05]} 3. e3 {[%emt 0:00:09]} Bg7 {[%emt 0:01:03]} 4. Nf3 {[%emt 0:00:13]} c5 {[%emt 0:00:47]} 5. c3 {[%emt 0:00:17]} Qb6 {[%emt 0:05:30]} 6. Qb3 {[%emt 0:00:49]} d6 {[%emt 0:02:01]} 7. Nbd2 {[%emt 0:08:39]} Nbd7 {[%emt 0:08:28]} 8. h3 {[%emt 0:02:58]} Qxb3 {[%emt 0:02:19]} 9. axb3 {[%emt 0:00:28]} b6 {[%emt 0:01:46]} 10. Ba6 {[%emt 0:02:35]} O-O {[%emt 0:00:51]} 11. O-O {[%emt 0:02:09]} Nd5 {[%emt 0:03:56]} 12. Bh2 {[%emt 0:01:43]} Bxa6 {[%emt 0:00:27]} 13. Rxa6 {[%emt 0:00:06]} Nc7 {[%emt 0:00:06]} 14. Raa1 {[%emt 0:01:30]} Rfc8 {[%emt 0:03:27]} 15. Nc4 {[%emt 0:09:59]} cxd4 {[%emt 0:13:28]} 16. exd4 {[%emt 0:01:58]} b5 {[%emt 0:00:59]} 17. Na5 {[%emt 0:04:21]} a6 {[%emt 0:04:07]} 18. Rfe1 {[%emt 0:02:04]} Bf6 {[%emt 0:02:00]} 19. Rad1 {[%emt 0:13:40]} d5 $16 {[%emt 0:09:57]} (19... Nb6 $11) 20. b4 {[%emt 0:08:07]} Nb6 {[%emt 0:05:03]} 21. Ne5 {[%emt 0:04:08]} Nc4 {[%emt 0:03:23]} 22. Naxc4 {[%emt 0:00:33]} dxc4 {[%emt 0:01:36]} 23. Nd7 {[%emt 0:01:12]} Nd5 {[%emt 0:00:08]} 24. Nxf6+ {[%emt 0:00:15]} exf6 {[%emt 0:00:15]} 25. Ra1 {[%emt 0:00:28]} Rc6 {[%emt 0:02:32]} 26. Kf1 {[%emt 0:02:55]} f5 {[%emt 0:03:19]} 27. Ke2 {[%emt 0:08:18]} f6 {[%emt 0:01:31]} 28. Kd2 {[%emt 0:05:26]} Kf7 {[%emt 0:00:14]} 29. f3 {[%emt 0:02:05]} f4 {[%emt 0:05:35]} 30. Bg1 {[%emt 0:00:23]} Re8 {[%emt 0:03:10]} 31. Bf2 {[%emt 0:01:38]} Rxe1 {[%emt 0:00:39]} 32. Rxe1 {[%emt 0:00:07]} Re6 {[%emt 0:00:05]} 33. Ra1 {[%emt 0:01:59]} g5 {[%emt 0:00:54]} 34. Ra3 {[%emt 0:03:58]} Ne3 {[%emt 0:03:02]} 35. Bxe3 {[%emt 0:00:10]} fxe3+ {[%emt 0:00:07]} 36. Ke2 {[%emt 0:00:06]} f5 {[%emt 0:01:00]} 37. Ra1 {[%emt 0:02:02]} f4 {[%emt 0:00:13]} 38. Rd1 {[%emt 0:00:23]} Kf6 {[%emt 0:01:38]} 39. g4 {[%emt 0:01:06]} Ke7 {[%emt 0:00:44]} 40. h4 {[%emt 0:05:35]} Rh6 {[%emt 0:03:44]} 1/2-1/2

[Event "32nd NATO Championship 2022"]
[Site "Tartu"]
[Date "2022.06.28"]
[Round "3.17"]
[White "Flaata, Alexander R."]
[Black "Rosseel, Kimball"]
[Result "1/2-1/2"]
[ECO "B06"]
[WhiteElo "2033"]
[BlackElo "1822"]
[Annotator "NA RC"]
[PlyCount "135"]
[EventDate "2022.06.27"]
[EventType "swiss"]
[EventCountry "EST"]
[SourceTitle "playchess.com"]
[Source "ChessBase"]
[SourceQuality "1"]
[TimeControl "5400+30"]

1. d4 {[%emt 0:00:03]} d6 {[%emt 0:00:06]} 2. Bf4 {[%emt 0:01:01]} g6 {[%emt 0:00:42]} 3. Nc3 {[%emt 0:00:31]} Bg7 {[%emt 0:00:35]} 4. e4 {[%emt 0:01:15]} Nc6 {[%emt 0:01:11]} 5. d5 {[%emt 0:05:07]} Nd4 {[%emt 0:02:54]} 6. Nge2 {[%emt 0:01:29]} c5 {[%emt 0:01:37]} 7. dxc6 {[%emt 0:04:26]} Nxc6 {[%emt 0:00:44]} 8. Qd2 {[%emt 0:01:48]} Nf6 {[%emt 0:03:09]} 9. Bh6 {[%emt 0:01:25]} O-O {[%emt 0:00:30]} 10. h4 {[%emt 0:03:17]} Bxh6 {[%emt 0:08:10]} 11. Qxh6 {[%emt 0:00:09]} Ng4 {[%emt 0:00:09]} 12. Qd2 {[%emt 0:00:12]} Qb6 {[%emt 0:03:18]} 13. Ng3 {[%emt 0:01:38]} h6 {[%emt 0:10:04]} 14. Bc4 {[%emt 0:01:54]} Qd4 {[%emt 0:06:55]} 15. Qxd4 {[%emt 0:04:54]} Nxd4 {[%emt 0:00:02]} 16. O-O-O {[%emt 0:00:13]} Nxc2 {[%emt 0:04:00]} 17. Kxc2 {[%emt 0:07:33]} Nxf2 {[%emt 0:00:13]} 18. Nd5 {[%emt 0:01:44]} Nxh1 {[%emt 0:03:30]} 19. Nxe7+ {[%emt 0:00:13]} Kg7 {[%emt 0:01:00]} 20. Rxh1 {[%emt 0:04:20]} Be6 {[%emt 0:01:56]} 21. Kd3 {[%emt 0:01:49]} Bxc4+ {[%emt 0:04:44]} 22. Kxc4 {[%emt 0:00:10]} Rfe8 {[%emt 0:00:58]} 23. Nd5 {[%emt 0:00:40]} Rac8+ {[%emt 0:00:33]} 24. Kd3 {[%emt 0:00:28]} h5 {[%emt 0:03:35]} (24... Re5 $142) 25. Rf1 {[%emt 0:02:41]} Re5 $16 {[%emt 0:02:00]} 26. Ne3 {[%emt 0:04:31]} Rec5 {[%emt 0:04:56]} 27. Ne2 {[%emt 0:00:20]} b5 {[%emt 0:03:48]} 28. Nd4 {[%emt 0:05:08]} a6 {[%emt 0:02:12]} 29. Nb3 {[%emt 0:01:30]} Re5 {[%emt 0:02:26]} 30. Nd4 {[%emt 0:01:51]} Rec5 {[%emt 0:09:33]} 31. Rf2 {[%emt 0:01:53]} Re8 {[%emt 0:01:57]} 32. Nf3 {[%emt 0:02:40]} f6 {[%emt 0:02:18]} 33. b4 {[%emt 0:00:51]} Rc7 {[%emt 0:02:55]} 34. Nd5 {[%emt 0:00:41]} Rf7 {[%emt 0:02:44]} 35. Nd4 {[%emt 0:01:18]} Re5 {[%emt 0:01:42]} 36. Nf3 {[%emt 0:00:56]} Re8 {[%emt 0:02:07]} 37. Nd4 {[%emt 0:00:47]} Re5 {[%emt 0:00:37]} 38. Nc6 {[%emt 0:00:33]} Re8 {[%emt 0:00:58]} 39. Ne3 {[%emt 0:03:25]} Rc8 {[%emt 0:02:42]} 40. Nd4 {[%emt 0:00:23]} Re8 {[%emt 0:00:24]} 41. Rc2 {[%emt 0:01:31]} Rfe7 {[%emt 0:01:23]} 42. Nef5+ {[%emt 0:06:52]} gxf5 {[%emt 0:00:23]} 43. Nxf5+ {[%emt 0:00:04]} Kf8 {[%emt 0:00:51]} 44. Nxe7 {[%emt 0:00:12]} Kxe7 {[%emt 0:00:31]} 45. Ke3 {[%emt 0:03:00]} Ke6 {[%emt 0:00:45]} 46. Rc6 {[%emt 0:00:20]} Ra8 {[%emt 0:01:57]} 47. Rb6 {[%emt 0:01:06]} Kd7 {[%emt 0:01:33]} 48. Rb7+ {[%emt 0:00:12]} Ke6 {[%emt 0:00:16]} 49. Kf4 {[%emt 0:00:19]} Rc8 {[%emt 0:01:24]} 50. Rb6 {[%emt 0:00:57]} Rc2 {[%emt 0:00:21]} 51. Rxa6 {[%emt 0:00:15]} Rxg2 {[%emt 0:00:02]} 52. Kf3 {[%emt 0:00:29]} Rg4 {[%emt 0:00:08]} 53. Ra5 {[%emt 0:00:05]} Rxh4 {[%emt 0:00:24]} 54. Rxb5 {[%emt 0:00:07]} Rh3+ {[%emt 0:01:46]} 55. Kg2 {[%emt 0:01:47]} Ra3 {[%emt 0:00:29]} 56. Ra5 {[%emt 0:02:06]} Re3 {[%emt 0:00:18]} 57. Rxh5 {[%emt 0:00:31]} Rxe4 {[%emt 0:00:00]} 58. a3 {[%emt 0:01:02]} d5 {[%emt 0:00:07]} 59. b5 {[%emt 0:00:27]} Kd6 {[%emt 0:00:25]} 60. Rh3 {[%emt 0:00:30]} d4 {[%emt 0:01:12]} 61. Rb3 {[%emt 0:00:15]} Kc5 {[%emt 0:00:40]} 62. a4 {[%emt 0:00:32]} d3 {[%emt 0:00:12]} 63. Rc3+ {[%emt 0:01:15]} Kb4 {[%emt 0:00:47]} 64. Rxd3 {[%emt 0:00:07]} Kxa4 {[%emt 0:00:10]} 65. b6 {[%emt 0:00:18]} Rb4 {[%emt 0:00:01]} 66. Rd6 {[%emt 0:01:04]} Ka5 {[%emt 0:00:03]} 67. Rxf6 {[%emt 0:00:09]} Rxb6 {[%emt 0:00:08]} 68. Rxb6 {[%emt 0:00:07]} 1/2-1/2

[Event "32nd NATO Championship 2022"]
[Site "Tartu"]
[Date "2022.06.28"]
[Round "3.18"]
[White "Tustanowski, Mateusz"]
[Black "Allmann, Lauri"]
[Result "1-0"]
[ECO "B07"]
[WhiteElo "2036"]
[BlackElo "1804"]
[Annotator "NA RC"]
[PlyCount "69"]
[EventDate "2022.06.27"]
[EventType "swiss"]
[EventCountry "EST"]
[SourceTitle "playchess.com"]
[Source "ChessBase"]
[SourceQuality "1"]
[TimeControl "5400+30"]

1. d4 {[%emt 0:00:04]} Nf6 {[%emt 0:00:15]} 2. Bf4 {[%emt 0:00:06]} g6 {[%emt 0:00:34]} 3. Nc3 {[%emt 0:00:07]} Bg7 {[%emt 0:00:11]} 4. e4 {[%emt 0:00:05]} d6 {[%emt 0:02:56]} 5. Qd2 {[%emt 0:00:05]} a6 {[%emt 0:03:46]} 6. O-O-O {[%emt 0:00:32]} Nc6 {[%emt 0:02:49]} 7. f3 {[%emt 0:02:43]} b5 {[%emt 0:02:46]} 8. Bh6 {[%emt 0:00:57]} Bxh6 {[%emt 0:04:23]} 9. Qxh6 {[%emt 0:02:08]} e5 {[%emt 0:00:54]} 10. dxe5 {[%emt 0:18:25]} Nxe5 {[%emt 0:01:14]} 11. h3 {[%emt 0:00:25]} Ng8 {[%emt 0:08:08]} (11... Qe7 $11) 12. Qe3 {[%emt 0:04:46]} Ne7 {[%emt 0:02:36]} 13. f4 {[%emt 0:00:17]} N5c6 {[%emt 0:01:00]} 14. Nd5 {[%emt 0:01:22]} Nxd5 {[%emt 0:08:09]} 15. exd5+ {[%emt 0:00:13]} Qe7 {[%emt 0:00:23]} 16. Qc3 {[%emt 0:00:17]} O-O {[%emt 0:00:39]} 17. Re1 {[%emt 0:02:11]} Qh4 {[%emt 0:08:49]} 18. g3 {[%emt 0:01:28]} Nb4 {[%emt 0:03:53]} 19. gxh4 {[%emt 0:03:52]} Nxa2+ {[%emt 0:00:16]} 20. Kd2 {[%emt 0:00:04]} Nxc3 {[%emt 0:00:19]} 21. Kxc3 {[%emt 0:00:07]} Bb7 {[%emt 0:03:32]} 22. Bg2 {[%emt 0:00:24]} Rfe8 {[%emt 0:02:19]} 23. Ne2 {[%emt 0:01:23]} Re3+ {[%emt 0:02:41]} 24. Kd2 {[%emt 0:00:06]} Re7 {[%emt 0:04:26]} 25. Ng3 {[%emt 0:01:23]} Rd7 $18 {[%emt 0:01:11]} 26. h5 {[%emt 0:00:24]} f5 {[%emt 0:02:42]} 27. Re6 {[%emt 0:03:22]} Kf7 {[%emt 0:01:44]} 28. Rhe1 {[%emt 0:01:40]} Rg8 {[%emt 0:02:25]} 29. Bf3 {[%emt 0:00:56]} a5 {[%emt 0:01:16]} 30. h6 {[%emt 0:01:54]} a4 {[%emt 0:01:30]} 31. Nh5 {[%emt 0:01:38]} gxh5 {[%emt 0:03:25]} 32. Bxh5+ {[%emt 0:00:04]} Rg6 {[%emt 0:01:45]} 33. Bxg6+ {[%emt 0:00:04]} hxg6 {[%emt 0:01:05]} 34. Re8 {[%emt 0:00:02]} Bxd5 {[%emt 0:02:02]} 35. h7 {[%emt 0:00:08]} 1-0

[Event "32nd NATO Championship 2022"]
[Site "Tartu"]
[Date "2022.06.28"]
[Round "3.21"]
[White "Van den Heuvel, Tonnie"]
[Black "Nilsson, Erik"]
[Result "0-1"]
[ECO "A01"]
[WhiteElo "1799"]
[BlackElo "2002"]
[Annotator "NA RC"]
[PlyCount "62"]
[EventDate "2022.06.27"]
[EventType "swiss"]
[EventCountry "EST"]
[SourceTitle "playchess.com"]
[Source "ChessBase"]
[SourceQuality "1"]
[TimeControl "5400+30"]

1. b3 {[%emt 0:00:02]} e5 {[%emt 0:00:09]} 2. Bb2 {[%emt 0:00:08]} Nc6 {[%emt 0:00:06]} 3. e3 {[%emt 0:00:06]} Nf6 {[%emt 0:00:09]} 4. Bb5 {[%emt 0:00:39]} e4 {[%emt 0:01:35]} 5. d4 {[%emt 0:07:44]} exd3 {[%emt 0:03:09]} 6. Qxd3 {[%emt 0:06:01]} Nb4 {[%emt 0:02:54]} 7. Qd1 {[%emt 0:01:17]} c6 {[%emt 0:03:04]} 8. Be2 {[%emt 0:00:26]} a5 {[%emt 0:00:35]} 9. a3 {[%emt 0:01:18]} Na6 {[%emt 0:00:11]} 10. Nf3 {[%emt 0:00:52]} Be7 {[%emt 0:03:06]} 11. O-O {[%emt 0:01:23]} O-O {[%emt 0:00:08]} 12. Nc3 {[%emt 0:00:53]} Nc5 {[%emt 0:01:51]} 13. Re1 {[%emt 0:10:26]} Re8 {[%emt 0:01:13]} 14. Qd4 {[%emt 0:02:53]} (14. Na4 $11) 14... Ne6 {[%emt 0:02:39]} (14... d5 $15) 15. Qd2 {[%emt 0:00:37]} d6 {[%emt 0:00:53]} 16. Rad1 {[%emt 0:00:51]} Qc7 {[%emt 0:00:41]} 17. Nd4 {[%emt 0:00:38]} Nf8 {[%emt 0:01:30]} 18. Bd3 {[%emt 0:00:48]} Ng6 {[%emt 0:00:40]} 19. Nf5 {[%emt 0:02:42]} Bf8 {[%emt 0:01:01]} 20. Ne2 {[%emt 0:01:16]} Ne5 {[%emt 0:05:57]} 21. Bxe5 {[%emt 0:06:46]} dxe5 {[%emt 0:00:28]} 22. f3 {[%emt 0:16:14]} Bxa3 {[%emt 0:04:33]} 23. e4 {[%emt 0:04:54]} Bxf5 {[%emt 0:01:23]} 24. exf5 {[%emt 0:00:08]} e4 {[%emt 0:05:15]} 25. fxe4 {[%emt 0:03:54]} Ng4 {[%emt 0:01:46]} ({And not} 25... Nxe4 26. Bxe4 Rxe4 27. Kh1 $17) 26. Nf4 {[%emt 0:01:51]} Bc5+ $19 {[%emt 0:03:57]} 27. Kf1 {[%emt 0:00:53]} Be3 {[%emt 0:02:39]} 28. Rxe3 {[%emt 0:00:22]} Qxf4+ {[%emt 0:00:08]} 29. Rf3 {[%emt 0:00:07]} Nxh2+ {[%emt 0:00:43]} 30. Ke2 {[%emt 0:02:33]} Qxd2+ {[%emt 0:00:13]} 31. Rxd2 {[%emt 0:00:08]} Nxf3 {[%emt 0:00:07]} 0-1

[Event "32nd NATO Championship 2022"]
[Site "Tartu"]
[Date "2022.06.28"]
[Round "3.23"]
[White "Nielsen, Jan Mose"]
[Black "Charles, Freddy"]
[Result "1-0"]
[ECO "B07"]
[WhiteElo "1991"]
[BlackElo "1728"]
[Annotator "NA RC"]
[PlyCount "41"]
[EventDate "2022.06.27"]
[EventType "swiss"]
[EventCountry "EST"]
[SourceTitle "playchess.com"]
[Source "ChessBase"]
[SourceQuality "1"]
[TimeControl "5400+30"]

1. d4 {[%emt 0:00:03]} Nf6 {[%emt 0:00:12]} 2. Bg5 {[%emt 0:00:22]} d6 {[%emt 0:00:12]} 3. Nc3 {[%emt 0:00:24]} c6 {[%emt 0:00:13]} 4. e4 {[%emt 0:04:21]} Nbd7 {[%emt 0:00:51]} 5. f4 {[%emt 0:02:37]} Qa5 {[%emt 0:03:40]} 6. Bd3 {[%emt 0:08:25]} e5 {[%emt 0:05:32]} 7. Nf3 {[%emt 0:08:06]} Be7 {[%emt 0:07:06]} 8. Qd2 {[%emt 0:08:03]} Ng8 {[%emt 0:05:15]} 9. fxe5 {[%emt 0:31:42]} dxe5 {[%emt 0:00:49]} 10. d5 {[%emt 0:06:36]} Bb4 {[%emt 0:04:15]} 11. O-O-O {[%emt 0:06:47]} f6 {[%emt 0:04:52]} 12. dxc6 {[%emt 0:01:52]} bxc6 {[%emt 0:00:39]} 13. Be3 {[%emt 0:00:19]} Ne7 $16 {[%emt 0:04:25]} (13... Nh6 $11 {remains equal.}) 14. Bc4 {[%emt 0:00:34]} Qc7 {[%emt 0:02:45]} 15. a3 {[%emt 0:02:29]} Bc5 {[%emt 0:02:25]} 16. Rhe1 {[%emt 0:01:35]} a5 {[%emt 0:04:53]} 17. Na4 {[%emt 0:03:00]} Bxe3 {[%emt 0:00:56]} 18. Rxe3 {[%emt 0:00:09]} Nb6 {[%emt 0:00:44]} 19. Nxb6 {[%emt 0:00:23]} Qxb6 {[%emt 0:00:13]} 20. Rd3 {[%emt 0:00:37]} Bb7 {[%emt 0:01:58]} 21. Rd7 {[%emt 0:00:34]} 1-0